[Event "RUS-chT Higher League 2021"]
[Site "Sochi"]
[Date "2021.05.04"]
[Round "4.4"]
[White "Zhelnin, Vladimir V"]
[Black "Matveev, Vladimir"]
[Result "1-0"]
[ECO "B50"]
[WhiteElo "2408"]
[BlackElo "2368"]
[Annotator "NA"]
[PlyCount "101"]
[EventDate "2021.05.01"]
[EventType "team-tourn"]
[EventCountry "RUS"]
[SourceTitle "playchess.com"]
[Source "ChessBase"]
[SourceQuality "1"]
[TimeControl "40/5400+30:1800+30"]

1. e4 {[%emt 0:00:00]} c5 {[%emt 0:00:00]} 2. Nf3 {[%emt 0:00:00]} d6 {[%emt 0:00:00]} 3. Bc4 {[%emt 0:02:53]} Nf6 {[%emt 0:03:12]} 4. d3 {[%emt 0:00:11]} Nc6 {[%emt 0:01:45]} 5. O-O {[%emt 0:01:31]} Bg4 {[%emt 0:01:34]} 6. Nbd2 {[%emt 0:01:38]} e6 {[%emt 0:00:28]} 7. Re1 {[%emt 0:02:05]} Be7 {[%emt 0:01:16]} 8. h3 {[%emt 0:06:43]} Bh5 {[%emt 0:01:11]} 9. Nf1 {[%emt 0:09:00]} Qc7 {[%emt 0:27:03]} 10. Ng3 {[%emt 0:05:02]} Bg6 {[%emt 0:00:29]} 11. c3 {[%emt 0:12:40]} Nd7 {[%emt 0:08:30]} 12. Bb3 {[%emt 0:08:46]} Nde5 {[%emt 0:10:19]} 13. Nh2 {[%emt 0:02:47]} h5 {[%emt 0:11:13]} 14. f4 {[%emt 0:08:39]} h4 {[%emt 0:01:37]} 15. Ngf1 {[%emt 0:03:44]} Bh5 {[%emt 0:04:49]} 16. Qc2 {[%emt 0:01:35]} Nd7 {[%emt 0:00:12]} 17. Qf2 {[%emt 0:05:02]} Na5 {[%emt 0:03:44]} 18. Bc2 {[%emt 0:00:37]} a6 {[%emt 0:04:27]} 19. Nf3 {[%emt 0:01:24]} Bxf3 {[%emt 0:01:38]} 20. Qxf3 {[%emt 0:00:10]} b5 {[%emt 0:04:32]} 21. Ne3 {[%emt 0:00:51]} Rb8 {[%emt 0:01:06]} 22. Bd2 {[%emt 0:01:33]} Nc6 {[%emt 0:01:50]} 23. Rac1 {[%emt 0:01:28]} Qb7 {[%emt 0:01:59]} 24. Qf2 {[%emt 0:01:09]} Rc8 {[%emt 0:01:16]} 25. Re2 {[%emt 0:00:56]} Nb6 {[%emt 0:00:52]} 26. Ng4 {[%emt 0:02:28]} f5 {[%emt 0:02:39]} 27. Nh2 {[%emt 0:01:16]} O-O {[%emt 0:03:26]} 28. Nf3 {[%emt 0:02:10]} d5 {[%emt 0:00:15]} 29. exf5 {[%emt 0:01:04]} exf5 {[%emt 0:00:03]} 30. Rce1 {[%emt 0:00:56]} Rf7 {[%emt 0:00:49]} 31. Nxh4 {[%emt 0:02:45]} Bxh4 {[%emt 0:00:29]} 32. Qxh4 {[%emt 0:00:01]} Qd7 {[%emt 0:00:11]} 33. Be3 {[%emt 0:01:53]} d4 {[%emt 0:00:28]} 34. Bf2 {[%emt 0:00:12]} a5 {[%emt 0:01:24]} 35. Kh1 {[%emt 0:03:20]} a4 {[%emt 0:00:10]} 36. a3 {[%emt 0:00:43]} Nd5 {[%emt 0:01:52]} 37. Bb1 {[%emt 0:01:24]} dxc3 {[%emt 0:00:12]} 38. Bxc5 {[%emt 0:00:28]} cxb2 {[%emt 0:00:16]} 39. Ba2 {[%emt 0:02:36]} b1=Q {[%emt 0:00:08]} 40. Bxb1 {[%emt 0:00:00]} Nc3 {[%emt 0:00:00]} 41. Re3 {[%emt 0:03:05]} Nxb1 {[%emt 0:01:05]} 42. Rxb1 {[%emt 0:00:19]} Qd5 {[%emt 0:01:20]} 43. Rxb5 {[%emt 0:02:54]} Na7 {[%emt 0:06:32]} 44. Re5 {[%emt 0:03:39]} Qxd3 {[%emt 0:00:02]} 45. Bxa7 {[%emt 0:02:05]} Rxa7 {[%emt 0:00:02]} 46. Rxf5 {[%emt 0:00:56]} Qxa3 {[%emt 0:02:59]} 47. Rh5 {[%emt 0:01:47]} Qa1+ {[%emt 0:00:01]} 48. Kh2 {[%emt 0:00:19]} g6 {[%emt 0:00:03]} 49. Qg4 {[%emt 0:04:41]} Rc6 {[%emt 0:00:10]} 50. Rb8+ {[%emt 0:00:59]} Kg7 {[%emt 0:00:04]} 51. Rhh8 {[%emt 0:00:25]} 1-0

[Event "RUS-chT Higher League 2021"]
[Site "Sochi"]
[Date "2021.05.04"]
[Round "4.5"]
[White "Mokshanov, Alexey"]
[Black "Kezin, Roman"]
[Result "0-1"]
[ECO "B51"]
[WhiteElo "2448"]
[BlackElo "2472"]
[Annotator "ChessBase"]
[PlyCount "72"]
[EventDate "2021.05.01"]
[EventType "team-tourn"]
[EventCountry "RUS"]
[SourceTitle "playchess.com"]
[Source "ChessBase"]
[SourceQuality "1"]
[TimeControl "40/5400+30:1800+30"]

1. e4 {[%emt 0:00:00]} c5 {[%emt 0:00:00]} 2. Nf3 {[%emt 0:00:00]} d6 {[%emt 0:00:00]} 3. Bb5+ {[%emt 0:00:36]} Nd7 {[%emt 0:00:00]} 4. O-O {[%emt 0:00:20]} a6 {[%emt 0:00:00]} 5. Bd3 {[%emt 0:00:47]} Ngf6 {[%emt 0:00:00]} 6. c3 {[%emt 0:01:57]} b5 {[%emt 0:00:00]} 7. Bc2 {[%emt 0:01:15]} Bb7 {[%emt 0:00:01]} 8. Qe2 {[%emt 0:02:16]} e6 {[%emt 0:06:08]} 9. d4 {[%emt 0:01:10]} Be7 {[%emt 0:00:06]} 10. Rd1 {[%emt 0:05:55]} Qc7 {[%emt 0:05:44]} 11. Bd3 {[%emt 0:06:22]} O-O {[%emt 0:02:53]} 12. Nbd2 {[%emt 0:00:24]} Rfe8 {[%emt 0:02:34]} 13. a4 {[%emt 0:16:49]} c4 {[%emt 0:25:20]} 14. Bc2 {[%emt 0:01:20]} e5 {[%emt 0:00:03]} 15. b4 {[%emt 0:15:08]} d5 {[%emt 0:27:56]} 16. axb5 {[%emt 0:08:45]} axb5 {[%emt 0:00:16]} 17. Rxa8 {[%emt 0:00:10]} Bxa8 {[%emt 0:00:24]} 18. Nxe5 {[%emt 0:01:50]} Nxe5 {[%emt 0:00:40]} 19. dxe5 {[%emt 0:00:02]} Qxe5 {[%emt 0:00:28]} 20. Nf3 {[%emt 0:02:37]} Qxc3 {[%emt 0:01:05]} 21. e5 {[%emt 0:00:17]} Ne4 {[%emt 0:03:43]} 22. e6 {[%emt 0:01:06]} fxe6 {[%emt 0:10:31]} 23. Bxe4 {[%emt 0:00:21]} dxe4 {[%emt 0:00:13]} 24. Ng5 {[%emt 0:00:25]} Rd8 {[%emt 0:06:05]} 25. Rf1 {[%emt 0:00:39]} Qe5 {[%emt 0:03:29]} 26. Qh5 {[%emt 0:00:29]} Qf5 {[%emt 0:01:03]} 27. g4 {[%emt 0:00:19]} Qg6 {[%emt 0:00:08]} 28. Qxg6 {[%emt 0:00:04]} hxg6 {[%emt 0:00:04]} 29. Nxe6 {[%emt 0:00:04]} Rd3 {[%emt 0:02:05]} 30. Be3 {[%emt 0:00:01]} Bxb4 {[%emt 0:02:42]} 31. Rb1 {[%emt 0:00:28]} Rb3 {[%emt 0:00:51]} 32. Ra1 {[%emt 0:00:23]} Bd5 {[%emt 0:00:45]} 33. Nd4 {[%emt 0:00:19]} Bc3 {[%emt 0:00:39]} 34. Ra7 {[%emt 0:00:48]} Bxd4 {[%emt 0:00:23]} 35. Bxd4 {[%emt 0:00:02]} Rb1+ {[%emt 0:00:05]} 36. Kg2 {[%emt 0:00:02]} e3+ {[%emt 0:00:05]} 0-1

[Event "RUS-chT Higher League 2021"]
[Site "Sochi"]
[Date "2021.05.04"]
[Round "4.6"]
[White "Obgolts, Erik"]
[Black "Grebnev, Aleksey"]
[Result "1/2-1/2"]
[ECO "A46"]
[WhiteElo "2414"]
[BlackElo "2283"]
[Annotator "NA"]
[PlyCount "60"]
[EventDate "2021.05.01"]
[EventType "team-tourn"]
[EventCountry "RUS"]
[SourceTitle "playchess.com"]
[Source "ChessBase"]
[SourceQuality "1"]
[TimeControl "40/5400+30:1800+30"]

1. d4 {[%emt 0:00:00]} Nf6 {[%emt 0:00:00]} 2. Nf3 {[%emt 0:00:00]} d5 {[%emt 0:00:00]} 3. c4 {[%emt 0:01:42]} e6 {[%emt 0:00:03]} 4. e3 {[%emt 0:01:48]} Be7 {[%emt 0:01:03]} 5. Nc3 {[%emt 0:00:07]} O-O {[%emt 0:00:14]} 6. Qc2 {[%emt 0:01:59]} a6 {[%emt 0:01:37]} 7. cxd5 {[%emt 0:03:32]} exd5 {[%emt 0:00:09]} 8. Bd3 {[%emt 0:00:06]} c5 {[%emt 0:07:50]} 9. dxc5 {[%emt 0:00:39]} Nc6 {[%emt 0:00:15]} 10. a3 {[%emt 0:00:40]} Bxc5 {[%emt 0:00:49]} 11. Ne2 {[%emt 0:08:36]} Qe7 {[%emt 0:02:24]} 12. h3 {[%emt 0:05:28]} Bd6 {[%emt 0:04:22]} 13. O-O {[%emt 0:02:25]} Ne5 {[%emt 0:02:49]} 14. Ned4 {[%emt 0:01:45]} Nxd3 {[%emt 0:01:43]} 15. Qxd3 {[%emt 0:00:04]} Ne4 {[%emt 0:00:32]} 16. b3 {[%emt 0:02:20]} Qf6 {[%emt 0:01:01]} 17. Rd1 {[%emt 0:06:32]} Qg6 {[%emt 0:06:13]} 18. Kf1 {[%emt 0:01:14]} Bd7 {[%emt 0:00:46]} 19. Bb2 {[%emt 0:05:51]} Rac8 {[%emt 0:00:11]} 20. Rac1 {[%emt 0:02:04]} Rxc1 {[%emt 0:02:22]} 21. Bxc1 {[%emt 0:00:03]} Qh5 {[%emt 0:01:29]} 22. Bb2 {[%emt 0:05:04]} Re8 {[%emt 0:04:17]} 23. Re1 {[%emt 0:07:49]} h6 {[%emt 0:02:29]} 24. Qd1 {[%emt 0:09:02]} Re7 {[%emt 0:23:31]} 25. Nd2 {[%emt 0:04:57]} Qg6 {[%emt 0:00:42]} 26. Nxe4 {[%emt 0:01:09]} dxe4 {[%emt 0:00:21]} 27. Ne2 {[%emt 0:04:33]} Bb5 {[%emt 0:02:32]} 28. Kg1 {[%emt 0:00:19]} Bd3 {[%emt 0:00:32]} 29. Nf4 {[%emt 0:02:11]} Qf5 {[%emt 0:02:52]} 30. Qd2 {[%emt 0:02:31]} Bxf4 {[%emt 0:01:28]} 1/2-1/2

[Event "RUS-chT Higher League 2021"]
[Site "Sochi"]
[Date "2021.05.04"]
[Round "4.7"]
[White "Sharikov, Alexander"]
[Black "Ovod, Evgenija"]
[Result "1-0"]
[ECO "A01"]
[WhiteElo "2132"]
[BlackElo "2341"]
[Annotator "NA"]
[PlyCount "75"]
[EventDate "2021.05.01"]
[EventType "team-tourn"]
[EventCountry "RUS"]
[SourceTitle "playchess.com"]
[Source "ChessBase"]
[SourceQuality "1"]
[TimeControl "40/5400+30:1800+30"]

1. b3 {[%emt 0:00:00]} e5 {[%emt 0:00:00]} 2. Bb2 {[%emt 0:00:00]} Nc6 {[%emt 0:00:00]} 3. e3 {[%emt 0:00:00]} Nf6 {[%emt 0:00:00]} 4. Nf3 {[%emt 0:00:05]} Qe7 {[%emt 0:03:04]} 5. d4 {[%emt 0:09:12]} e4 {[%emt 0:15:57]} 6. Nfd2 {[%emt 0:00:17]} d6 {[%emt 0:00:11]} 7. Be2 {[%emt 0:04:05]} h5 {[%emt 0:04:23]} 8. c4 {[%emt 0:05:12]} Bf5 {[%emt 0:13:55]} 9. b4 {[%emt 0:05:53]} O-O-O {[%emt 0:06:51]} 10. Qa4 {[%emt 0:06:25]} a6 {[%emt 0:01:12]} 11. b5 {[%emt 0:03:42]} Nb8 {[%emt 0:00:08]} 12. bxa6 {[%emt 0:02:11]} Nxa6 {[%emt 0:00:11]} 13. Nc3 {[%emt 0:01:10]} c6 {[%emt 0:14:25]} 14. Rb1 {[%emt 0:18:52]} Qc7 {[%emt 0:11:03]} 15. Ba3 {[%emt 0:03:54]} Nb8 {[%emt 0:11:40]} 16. Rb2 {[%emt 0:08:00]} Re8 {[%emt 0:05:17]} 17. O-O {[%emt 0:02:36]} b6 {[%emt 0:03:08]} 18. c5 {[%emt 0:07:19]} dxc5 {[%emt 0:02:08]} 19. dxc5 {[%emt 0:00:03]} b5 {[%emt 0:01:00]} 20. Bxb5 {[%emt 0:00:28]} cxb5 {[%emt 0:00:12]} 21. Nxb5 {[%emt 0:00:08]} Bd7 {[%emt 0:00:35]} 22. Nc4 {[%emt 0:03:47]} Bxc5 {[%emt 0:01:39]} 23. Bxc5 {[%emt 0:01:52]} Bxb5 {[%emt 0:02:49]} 24. Qxb5 {[%emt 0:00:35]} Re6 {[%emt 0:00:55]} 25. Nb6+ {[%emt 0:01:07]} Kd8 {[%emt 0:00:20]} 26. Na8 {[%emt 0:01:31]} Qc8 {[%emt 0:01:02]} 27. Qxb8 {[%emt 0:00:25]} Nd7 {[%emt 0:00:08]} 28. Qxc8+ {[%emt 0:00:31]} Kxc8 {[%emt 0:00:03]} 29. Nb6+ {[%emt 0:00:12]} Nxb6 {[%emt 0:00:12]} 30. Rxb6 {[%emt 0:00:03]} Rhh6 {[%emt 0:00:51]} 31. Rxe6 {[%emt 0:00:08]} Rxe6 {[%emt 0:00:03]} 32. Bd4 {[%emt 0:00:10]} g6 {[%emt 0:00:07]} 33. Ra1 {[%emt 0:00:04]} Rc6 {[%emt 0:00:21]} 34. a4 {[%emt 0:00:03]} Kb7 {[%emt 0:00:09]} 35. a5 {[%emt 0:00:04]} Ka6 {[%emt 0:00:03]} 36. h4 {[%emt 0:00:07]} Rc2 {[%emt 0:00:05]} 37. Bb6 {[%emt 0:00:19]} f5 {[%emt 0:00:10]} 38. Rd1 {[%emt 0:00:04]} 1-0

[Event "RUS-chT Higher League 2021"]
[Site "Sochi"]
[Date "2021.05.04"]
[Round "4.8"]
[White "Kolmagorov, Alexey"]
[Black "Bobkov, Vadim"]
[Result "1-0"]
[ECO "A14"]
[WhiteElo "2129"]
[BlackElo "2265"]
[Annotator "NA"]
[PlyCount "63"]
[EventDate "2021.05.01"]
[EventType "team-tourn"]
[EventCountry "RUS"]
[SourceTitle "playchess.com"]
[Source "ChessBase"]
[SourceQuality "1"]
[TimeControl "40/5400+30:1800+30"]

1. c4 {[%emt 0:00:00]} e6 {[%emt 0:00:00]} 2. g3 {[%emt 0:00:00]} d5 {[%emt 0:00:00]} 3. Bg2 {[%emt 0:00:11]} Nf6 {[%emt 0:00:00]} 4. Nf3 {[%emt 0:00:05]} Be7 {[%emt 0:04:00]} 5. O-O {[%emt 0:00:06]} O-O {[%emt 0:06:02]} 6. d4 {[%emt 0:00:06]} c6 {[%emt 0:00:23]} 7. Nc3 {[%emt 0:02:22]} b6 {[%emt 0:03:48]} 8. Bf4 {[%emt 0:01:59]} Bb7 {[%emt 0:03:11]} 9. Ne5 {[%emt 0:13:10]} Nfd7 {[%emt 0:05:56]} 10. Nxd7 {[%emt 0:05:24]} Nxd7 {[%emt 0:08:30]} 11. Qd3 {[%emt 0:03:26]} dxc4 {[%emt 0:08:52]} 12. Qxc4 {[%emt 0:00:13]} b5 {[%emt 0:00:07]} 13. Qb3 {[%emt 0:03:59]} a6 {[%emt 0:04:54]} 14. Rfd1 {[%emt 0:03:28]} Qb6 {[%emt 0:05:36]} 15. Be3 {[%emt 0:12:55]} Qc7 {[%emt 0:07:20]} 16. Rac1 {[%emt 0:05:51]} c5 {[%emt 0:21:44]} 17. d5 {[%emt 0:01:25]} c4 {[%emt 0:00:36]} 18. Qc2 {[%emt 0:00:04]} exd5 {[%emt 0:00:24]} 19. Nxd5 {[%emt 0:01:01]} Bxd5 {[%emt 0:00:05]} 20. Bxd5 {[%emt 0:04:22]} Rac8 {[%emt 0:01:38]} 21. Qf5 {[%emt 0:04:03]} Nf6 {[%emt 0:00:59]} 22. Bf3 {[%emt 0:02:05]} g6 {[%emt 0:02:37]} 23. Qh3 {[%emt 0:02:04]} Bd6 {[%emt 0:07:04]} 24. Bd4 {[%emt 0:04:59]} Be5 {[%emt 0:00:23]} 25. Qh4 {[%emt 0:01:06]} Rcd8 {[%emt 0:01:17]} 26. e3 {[%emt 0:01:35]} Nd7 {[%emt 0:03:02]} 27. Be2 {[%emt 0:08:13]} Bxd4 {[%emt 0:01:47]} 28. Rxd4 {[%emt 0:00:12]} Nc5 {[%emt 0:00:04]} 29. b3 {[%emt 0:01:15]} cxb3 {[%emt 0:01:26]} 30. axb3 {[%emt 0:00:03]} Rxd4 {[%emt 0:02:19]} 31. exd4 {[%emt 0:02:34]} Qa5 {[%emt 0:00:41]} 32. Rxc5 {[%emt 0:00:38]} 1-0

[Event "RUS-chT Higher League 2021"]
[Site "Sochi"]
[Date "2021.05.04"]
[Round "4.10"]
[White "Drygalov, Andrey"]
[Black "Khalikov, Bulat"]
[Result "1/2-1/2"]
[ECO "C50"]
[WhiteElo "2500"]
[BlackElo "2182"]
[Annotator "ChessBase"]
[PlyCount "51"]
[EventDate "2021.05.01"]
[EventType "team-tourn"]
[EventCountry "RUS"]
[SourceTitle "playchess.com"]
[Source "ChessBase"]
[SourceQuality "1"]
[TimeControl "40/5400+30:1800+30"]

1. e4 {[%emt 0:00:00]} e5 {[%emt 0:00:00]} 2. Nf3 {[%emt 0:00:30]} Nc6 {[%emt 0:00:00]} 3. Bc4 {[%emt 0:00:00]} Bc5 {[%emt 0:00:00]} 4. O-O {[%emt 0:00:00]} Nf6 {[%emt 0:00:00]} 5. d3 {[%emt 0:00:00]} d6 {[%emt 0:00:07]} 6. c3 {[%emt 0:00:00]} a6 {[%emt 0:00:19]} 7. a4 {[%emt 0:00:00]} Ba7 {[%emt 0:00:03]} 8. Nbd2 {[%emt 0:00:04]} O-O {[%emt 0:00:16]} 9. h3 {[%emt 0:00:28]} h6 {[%emt 0:00:15]} 10. Re1 {[%emt 0:00:32]} Re8 {[%emt 0:00:10]} 11. b4 {[%emt 0:00:23]} Be6 {[%emt 0:00:16]} 12. Bxe6 {[%emt 0:00:37]} Rxe6 {[%emt 0:00:14]} 13. Qc2 {[%emt 0:00:48]} Qd7 {[%emt 0:00:33]} 14. Rb1 {[%emt 0:01:59]} b5 {[%emt 0:04:33]} 15. Ra1 {[%emt 0:07:53]} Ree8 {[%emt 0:01:06]} 16. Nb3 {[%emt 0:08:54]} d5 {[%emt 0:08:06]} 17. Be3 {[%emt 0:23:31]} bxa4 {[%emt 0:19:38]} 18. Rxa4 {[%emt 0:10:21]} Bxe3 {[%emt 0:07:23]} 19. Rxe3 {[%emt 0:00:59]} Nxb4 {[%emt 0:03:49]} 20. Rxb4 {[%emt 0:05:32]} a5 {[%emt 0:01:40]} 21. Nxa5 {[%emt 0:10:48]} Rxa5 {[%emt 0:01:21]} 22. Re1 {[%emt 0:00:15]} c5 {[%emt 0:19:04]} 23. Rbb1 {[%emt 0:05:14]} c4 {[%emt 0:02:17]} 24. Nd2 {[%emt 0:01:43]} cxd3 {[%emt 0:01:43]} 25. Qxd3 {[%emt 0:00:04]} Qc7 {[%emt 0:04:52]} 26. exd5 {[%emt 0:08:29]} 1/2-1/2

[Event "RUS-chT Higher League 2021"]
[Site "Sochi"]
[Date "2021.05.04"]
[Round "4.11"]
[White "Khodko, Yurii N."]
[Black "Gutenev, Alexander"]
[Result "0-1"]
[ECO "B69"]
[WhiteElo "2037"]
[BlackElo "2431"]
[Annotator "NA"]
[PlyCount "66"]
[EventDate "2021.05.01"]
[EventType "team-tourn"]
[EventCountry "RUS"]
[SourceTitle "playchess.com"]
[Source "ChessBase"]
[SourceQuality "1"]
[TimeControl "40/5400+30:1800+30"]

1. e4 {[%emt 0:00:00]} c5 {[%emt 0:00:00]} 2. Nf3 {[%emt 0:00:42]} Nc6 {[%emt 0:00:00]} 3. d4 {[%emt 0:00:09]} cxd4 {[%emt 0:00:02]} 4. Nxd4 {[%emt 0:00:09]} Nf6 {[%emt 0:00:08]} 5. Nc3 {[%emt 0:00:07]} d6 {[%emt 0:00:37]} 6. Bg5 {[%emt 0:01:20]} e6 {[%emt 0:00:31]} 7. Qd2 {[%emt 0:00:45]} a6 {[%emt 0:00:25]} 8. O-O-O {[%emt 0:00:18]} Bd7 {[%emt 0:00:05]} 9. f4 {[%emt 0:00:20]} Be7 {[%emt 0:01:16]} 10. Nf3 {[%emt 0:02:03]} b5 {[%emt 0:00:08]} 11. Bxf6 {[%emt 0:00:49]} gxf6 {[%emt 0:00:07]} 12. f5 {[%emt 0:00:03]} Qb6 {[%emt 0:00:11]} 13. Kb1 {[%emt 0:00:46]} O-O-O {[%emt 0:00:09]} 14. g3 {[%emt 0:00:33]} Kb8 {[%emt 0:00:54]} 15. fxe6 {[%emt 0:00:54]} fxe6 {[%emt 0:00:04]} 16. Bh3 {[%emt 0:00:04]} Na5 {[%emt 0:00:20]} 17. Nd4 {[%emt 0:19:05]} b4 {[%emt 0:00:37]} 18. Nce2 {[%emt 0:00:48]} e5 {[%emt 0:00:12]} 19. Bxd7 {[%emt 0:00:49]} Rxd7 {[%emt 0:00:05]} 20. Nf5 {[%emt 0:00:56]} Nc4 {[%emt 0:00:11]} 21. Qd5 {[%emt 0:03:26]} Rc8 {[%emt 0:00:15]} 22. Nc1 {[%emt 0:04:07]} a5 {[%emt 0:09:45]} 23. Rhf1 {[%emt 0:09:58]} a4 {[%emt 0:16:24]} 24. Rf3 {[%emt 0:11:35]} Bf8 {[%emt 0:02:19]} 25. Nd3 {[%emt 0:13:51]} Rdc7 {[%emt 0:05:44]} 26. g4 {[%emt 0:02:06]} b3 {[%emt 0:08:21]} 27. axb3 {[%emt 0:03:09]} axb3 {[%emt 0:00:21]} 28. c3 {[%emt 0:02:20]} Ra7 {[%emt 0:01:07]} 29. Nb4 {[%emt 0:00:57]} Ra5 {[%emt 0:01:49]} 30. Qf7 {[%emt 0:00:21]} Qxb4 {[%emt 0:01:45]} 31. cxb4 {[%emt 0:01:33]} Nd2+ {[%emt 0:00:05]} 32. Rxd2 {[%emt 0:00:05]} Ra1+ {[%emt 0:00:15]} 33. Kxa1 {[%emt 0:00:03]} Rc1# {[%emt 0:00:03]} 0-1

[Event "RUS-chT Higher League 2021"]
[Site "Sochi"]
[Date "2021.05.04"]
[Round "4.12"]
[White "Radzhabov, Rodion"]
[Black "Sapegin, Yaroslav"]
[Result "1-0"]
[ECO "A04"]
[WhiteElo "2352"]
[BlackElo "2020"]
[Annotator "NA"]
[PlyCount "125"]
[EventDate "2021.05.01"]
[EventType "team-tourn"]
[EventCountry "RUS"]
[SourceTitle "playchess.com"]
[Source "ChessBase"]
[SourceQuality "1"]
[TimeControl "40/5400+30:1800+30"]

1. Nf3 {[%emt 0:00:00]} Nc6 {[%emt 0:00:00]} 2. d4 {[%emt 0:04:49]} d5 {[%emt 0:02:17]} 3. g3 {[%emt 0:00:09]} Bf5 {[%emt 0:01:01]} 4. Bg2 {[%emt 0:00:05]} Qd7 {[%emt 0:00:17]} 5. O-O {[%emt 0:00:38]} Bh3 {[%emt 0:02:19]} 6. c3 {[%emt 0:01:33]} Bxg2 {[%emt 0:04:07]} 7. Kxg2 {[%emt 0:00:03]} e6 {[%emt 0:00:18]} 8. Nbd2 {[%emt 0:03:09]} Nf6 {[%emt 0:01:10]} 9. Qc2 {[%emt 0:02:02]} Bd6 {[%emt 0:01:25]} 10. e4 {[%emt 0:01:50]} Nxe4 {[%emt 0:02:05]} 11. Nxe4 {[%emt 0:00:05]} dxe4 {[%emt 0:00:07]} 12. Qxe4 {[%emt 0:00:04]} O-O-O {[%emt 0:00:45]} 13. Re1 {[%emt 0:05:00]} h6 {[%emt 0:01:26]} 14. b4 {[%emt 0:04:22]} Ne7 {[%emt 0:02:12]} 15. Bb2 {[%emt 0:30:34]} Qc6 {[%emt 0:01:56]} 16. Qe2 {[%emt 0:06:14]} Qa4 {[%emt 0:14:12]} 17. a3 {[%emt 0:05:41]} Rhe8 {[%emt 0:05:56]} 18. c4 {[%emt 0:01:09]} c6 {[%emt 0:06:18]} 19. Qd1 {[%emt 0:08:17]} Qxd1 {[%emt 0:01:06]} 20. Raxd1 {[%emt 0:00:10]} g6 {[%emt 0:05:27]} 21. Bc1 {[%emt 0:06:51]} Ng8 {[%emt 0:01:45]} 22. h4 {[%emt 0:02:32]} b5 {[%emt 0:02:47]} 23. cxb5 {[%emt 0:07:00]} cxb5 {[%emt 0:00:23]} 24. d5 {[%emt 0:00:09]} a6 {[%emt 0:07:26]} 25. dxe6 {[%emt 0:00:40]} Rxe6 {[%emt 0:00:18]} 26. Rxe6 {[%emt 0:00:05]} fxe6 {[%emt 0:00:03]} 27. Bb2 {[%emt 0:00:53]} Be7 {[%emt 0:03:17]} 28. Rc1+ {[%emt 0:03:04]} Kb7 {[%emt 0:00:36]} 29. Nd4 {[%emt 0:00:45]} Rd6 {[%emt 0:01:10]} 30. Nb3 {[%emt 0:00:24]} Bf6 {[%emt 0:01:22]} 31. Nc5+ {[%emt 0:00:14]} Kb6 {[%emt 0:00:51]} 32. Bxf6 {[%emt 0:03:15]} Nxf6 {[%emt 0:00:03]} 33. Kf3 {[%emt 0:02:53]} e5 {[%emt 0:03:50]} 34. Rc3 {[%emt 0:01:04]} g5 {[%emt 0:01:24]} 35. hxg5 {[%emt 0:00:23]} hxg5 {[%emt 0:00:01]} 36. Re3 {[%emt 0:00:27]} Rd5 {[%emt 0:04:23]} 37. Ne4 {[%emt 0:00:08]} g4+ {[%emt 0:00:42]} 38. Ke2 {[%emt 0:00:06]} Nd7 {[%emt 0:00:30]} 39. f3 {[%emt 0:01:16]} gxf3+ {[%emt 0:00:46]} 40. Kxf3 {[%emt 0:00:00]} a5 {[%emt 0:00:00]} 41. bxa5+ {[%emt 0:01:40]} Kxa5 {[%emt 0:01:01]} 42. g4 {[%emt 0:00:02]} b4 {[%emt 0:05:04]} 43. g5 {[%emt 0:00:58]} Nf8 {[%emt 0:00:34]} 44. Kg4 {[%emt 0:02:18]} bxa3 {[%emt 0:02:55]} 45. Rxa3+ {[%emt 0:00:05]} Kb4 {[%emt 0:00:05]} 46. Ra8 {[%emt 0:00:48]} Ng6 {[%emt 0:00:36]} 47. Kf5 {[%emt 0:00:10]} Nh4+ {[%emt 0:01:04]} 48. Kg4 {[%emt 0:03:52]} Ng6 {[%emt 0:00:49]} 49. Ra6 {[%emt 0:00:45]} Nf4 {[%emt 0:00:34]} 50. Kf5 {[%emt 0:00:09]} Kc4 {[%emt 0:01:43]} 51. Ra4+ {[%emt 0:01:39]} Kb3 {[%emt 0:02:32]} 52. Ra7 {[%emt 0:00:32]} Kc2 {[%emt 0:02:17]} 53. Ra3 {[%emt 0:00:24]} Kb2 {[%emt 0:02:24]} 54. Re3 {[%emt 0:00:32]} Ra5 {[%emt 0:07:48]} 55. Nd6 {[%emt 0:01:25]} Rc5 {[%emt 0:01:56]} 56. Rxe5 {[%emt 0:02:18]} Rxe5+ {[%emt 0:00:46]} 57. Kxe5 {[%emt 0:00:04]} Ng6+ {[%emt 0:00:13]} 58. Kf6 {[%emt 0:01:48]} Nf4 {[%emt 0:00:32]} 59. Kf5 {[%emt 0:01:31]} Nd5 {[%emt 0:00:41]} 60. Nc8 {[%emt 0:02:36]} Ne3+ {[%emt 0:00:32]} 61. Kf4 {[%emt 0:00:37]} Ng2+ {[%emt 0:00:27]} 62. Kg3 {[%emt 0:02:03]} Ne3 {[%emt 0:00:23]} 63. Ne7 {[%emt 0:00:05]} 1-0